fUST/lending_fUST_20241211
["ID","MTS","AMOUNT","RATE_DAILY","PERIOD"]
[344918062,1733878238670,-500.0,0.00028799,2]
[344918064,1733878238680,-500.0,0.00028799,2]
[344918066,1733878238689,-1225.91598333,0.00028988,7]
[344918068,1733878238698,-302.75782099,0.00029,2]
[344918070,1733878238707,-302.75782099,0.00029,2]
[344918072,1733878238717,-302.27404947,0.0002929,2]
[344918074,1733878238726,-302.75782099,0.0002929,2]
[344918077,1733878238738,-174.11136016,0.00029444,2]
[344918079,1733878238747,-2509.64227784,0.000295,30]
[344918081,1733878238757,-160.0,0.00029544,3]
[344918083,1733878238767,-285.13364057,0.00029544,5]
[344918085,1733878238777,-302.75782099,0.0002958,2]
[344918087,1733878238788,-1000.0,0.000296,15]
[344918089,1733878238798,-1000.0,0.000296,16]
[344918091,1733878238808,-1000.0,0.000296,18]
[344918093,1733878238817,-1000.0,0.000296,20]
[344918095,1733878238827,-187.11858203,0.0002965,2]
[344918097,1733878238837,-187.11858202,0.00029651,2]
[344918099,1733878238846,-187.11858202,0.00029651,2]
[344918101,1733878238856,-878.82568009,0.00029698,2]
[344918103,1733878238866,-878.82568007,0.00029714,2]
[344918105,1733878238875,-878.82568007,0.00029731,2]
[344918107,1733878238885,-878.82568007,0.00029747,2]
[344918109,1733878238895,-372.467185,0.00029752,7]
[344918111,1733878238904,-372.467185,0.00029752,7]
[344918113,1733878238914,-209.011837,0.00029754,7]
[344918115,1733878238923,-383.502367,0.00029754,7]
[344918117,1733878238933,-383.502367,0.00029754,7]
[344918118,1733878238942,-151.0,0.00029754,7]
[344918120,1733878238951,-206.125017,0.00029755,7]
[344918122,1733878238967,-206.125017,0.00029755,7]
[344918123,1733878238977,-151.0,0.00029755,7]
[344918125,1733878238986,-151.372844,0.00029755,7]
[344918127,1733878238995,-150.0,0.00029757,2]
[344918129,1733878239005,-532.0,0.00029757,2]
[344918131,1733878239014,-2163.0,0.00029757,2]
[344918132,1733878239024,-2381.0,0.00029757,2]
[344918134,1733878239033,-151.0,0.00029761,7]
[344918136,1733878239043,-151.0,0.00029761,7]
[344918137,1733878239052,-151.0,0.00029761,7]
[344918138,1733878239061,-571.353096,0.00029761,7]
[344918139,1733878239071,-571.353096,0.00029761,7]
[344918140,1733878239081,-151.0,0.00029761,7]
[344918141,1733878239091,-151.0,0.00029761,7]
[344918142,1733878239100,-151.0,0.00029761,7]
[344918143,1733878239109,-151.0,0.00029761,7]
[344918144,1733878239119,-3229.353148,0.00029761,7]
[344918145,1733878239129,-3229.353148,0.00029761,7]
[344918146,1733878239139,-151.0,0.00029761,7]
[344918147,1733878239149,-151.0,0.00029761,7]
[344918148,1733878239159,-152.322351,0.00029761,7]
[344918149,1733878239169,-372.467185,0.00029761,7]
[344918150,1733878239178,-372.467185,0.00029761,7]
[344918151,1733878239188,-183.83249998,0.00029762,2]
[344918152,1733878239198,-185.37462436,0.00029762,2]
[344918153,1733878239207,-500.0,0.00029762,2]
[344918154,1733878239218,-201.97715335,0.00029762,2]
[344918155,1733878239227,-213.46016657,0.00029762,2]
[344918156,1733878239237,-151.492079,0.00029763,7]
[344918157,1733878239246,-151.0,0.00029763,7]
[344918158,1733878239256,-290.859708,0.00029763,7]
[344918159,1733878239265,-151.94246,0.00029763,7]
[344918160,1733878239275,-151.0,0.00029763,7]
[344918161,1733878239287,-206.498046,0.00029763,7]
[344918162,1733878239296,-240.752838,0.00029763,7]
[344918163,1733878239307,-240.752838,0.00029763,7]
[344918164,1733878239317,-240.752838,0.00029763,7]
[344918165,1733878239326,-240.752838,0.00029763,7]
[344918166,1733878239337,-235.462765,0.00029763,7]
[344918167,1733878239347,-235.462765,0.00029763,7]
[344918168,1733878239357,-235.462765,0.00029763,7]
[344918169,1733878239366,-235.462765,0.00029763,7]
[344918170,1733878239376,-151.0,0.00029763,7]
[344918171,1733878239385,-151.0,0.00029763,7]
[344918172,1733878239395,-661.141233,0.00029763,7]
[344918173,1733878239404,-661.141233,0.00029763,7]
[344918174,1733878239414,-661.141233,0.00029763,7]
[344918175,1733878239423,-661.141233,0.00029763,7]
[344918176,1733878239433,-878.82568007,0.00029763,2]
[344918177,1733878239443,-3229.353148,0.00029763,7]
[344918178,1733878239453,-3229.353148,0.00029763,7]
[344918179,1733878239462,-206.125017,0.00029763,7]
[344918180,1733878239472,-206.125017,0.00029763,7]
[344918181,1733878239482,-151.0,0.00029763,7]
[344918182,1733878239496,-383.502367,0.00029763,7]
[344918183,1733878239506,-383.502367,0.00029763,7]
[344918184,1733878239516,-151.0,0.00029763,7]
[344918185,1733878239526,-1493.13187031,0.00029763,2]
[344918186,1733878239539,-372.467185,0.00029763,7]
[344918187,1733878239549,-372.467185,0.00029763,7]
[344918188,1733878239562,-5587.14544603,0.00029763,21]
[344918189,1733878239572,-666.0,0.00029763,2]
[344918190,1733878239582,-199.80239903,0.00029763,7]
[344918191,1733878239592,-199.8,0.00029763,7]
[344918192,1733878239601,-199.80239903,0.00029763,7]
[344918193,1733878239611,-199.80239903,0.00029763,7]
[344918194,1733878239621,-199.8,0.00029763,7]
[344918195,1733878239630,-154.69447543,0.00029763,7]
[344918196,1733878239640,-154.69447543,0.00029763,7]
[344918197,1733878239650,-154.69447543,0.00029763,7]
[344918198,1733878239659,-154.69447543,0.00029763,7]
[344918199,1733878239669,-154.69447543,0.00029763,7]
[344918200,1733878239678,-154.69447543,0.00029763,7]
[344918201,1733878239688,-154.69447543,0.00029763,7]
[344918202,1733878239697,-154.69,0.00029763,7]
[344918203,1733878239706,-154.69447543,0.00029763,7]
[344918204,1733878239716,-154.69447543,0.00029763,7]
[344918205,1733878239725,-154.69447543,0.00029763,7]
[344918206,1733878239734,-154.69447543,0.00029763,7]
[344918207,1733878239743,-154.69447543,0.00029763,7]
[344918208,1733878239754,-154.69447543,0.00029763,7]
[344918209,1733878239763,-154.69447543,0.00029763,7]
[344918210,1733878239773,-154.69447543,0.00029763,7]
[344918211,1733878239785,-154.69447543,0.00029763,7]
[344918212,1733878239794,-154.69447543,0.00029763,7]
[344918214,1733878239805,-154.69447543,0.00029763,7]
[344918215,1733878239814,-154.69,0.00029763,7]
[344918217,1733878239823,-191.51,0.00029763,7]
[344918218,1733878239833,-500.0,0.00029773,5]
[344918220,1733878239842,-506.54214377,0.00029773,5]
[344918221,1733878239853,-500.64078969,0.00029773,2]
[344918223,1733878239862,-500.0,0.00029773,5]
[344918224,1733878239872,-162.81685759,0.00029773,5]
[344918227,1733878239882,-504.44565919,0.00029773,5]
[344918228,1733878239891,-500.0,0.00029773,5]
[344918229,1733878239900,-151.0,0.00029773,7]
[344918231,1733878239911,-571.353096,0.00029773,7]
[344918232,1733878239922,-571.353096,0.00029773,7]
[344918233,1733878239931,-151.0,0.00029773,7]
[344918234,1733878239941,-151.0,0.00029773,7]
[344918235,1733878239951,-151.0,0.00029773,7]
[344918236,1733878239960,-151.0,0.00029773,7]
[344918237,1733878239969,-151.0,0.00029773,7]
[344918239,1733878240088,-372.467185,0.00029773,7]
[344918240,1733878240098,-372.467185,0.00029773,7]
[344918241,1733878240108,-1000.0,0.00029782,8]
[344918242,1733878240117,-1493.13187031,0.00029784,2]
[344918243,1733878240127,-151.0,0.00029797,7]
[344918244,1733878240136,-368.127738,0.00029797,7]
[344918245,1733878240146,-368.127738,0.00029797,7]
[344918246,1733878240156,-368.127738,0.00029798,7]
[344918247,1733878240166,-368.127738,0.00029798,7]
[344918248,1733878240175,-383.502367,0.00029798,7]
[344918249,1733878240184,-383.502367,0.00029798,7]
[344918250,1733878240194,-151.0,0.00029798,7]
[344918252,1733878240204,-500.0,0.00029799,7]
[344918253,1733878240213,-154.83,0.000298,2]
[344918254,1733878240223,-30064.77245247,0.000298,4]
[344918255,1733878240232,-158.766345,0.000298,7]
[344918256,1733878240242,-158.766345,0.000298,7]
[344918257,1733878240252,-158.766345,0.000298,7]
[344918258,1733878240261,-158.766345,0.000298,7]
[344918259,1733878240270,-586.232623,0.000298,7]
[344918260,1733878240281,-586.232623,0.000298,7]
[344918261,1733878240293,-586.232623,0.000298,7]
[344918262,1733878240303,-586.232623,0.000298,7]
[344918264,1733878240312,-368.127738,0.000298,7]
[344918265,1733878240322,-368.127738,0.000298,7]
[344918267,1733878240331,-857.918079,0.000298,7]
[344918268,1733878240341,-857.918079,0.000298,7]
[344918269,1733878240350,-857.918079,0.000298,7]
[344918270,1733878240362,-857.918079,0.000298,7]
[344918271,1733878240372,-151.0,0.000298,7]
[344918272,1733878240381,-151.0,0.000298,7]
[344918273,1733878240391,-151.0,0.000298,7]
[344918274,1733878240401,-240.752838,0.000298,7]
[344918275,1733878240410,-240.752838,0.000298,7]
[344918276,1733878240420,-235.462765,0.000298,7]
[344918277,1733878240429,-235.462765,0.000298,7]
[344918278,1733878240439,-151.0,0.000298,7]
[344918279,1733878240448,-571.353096,0.000298,7]
[344918280,1733878240458,-571.353096,0.000298,7]
[344918281,1733878240467,-151.0,0.000298,7]
[344918282,1733878240476,-151.0,0.000298,7]
[344918283,1733878240486,-257.663119,0.000298,7]
[344918284,1733878240497,-151.0,0.000298,7]
[344918285,1733878240507,-661.141233,0.000298,7]
[344918286,1733878240516,-661.141233,0.000298,7]
[344918287,1733878240525,-3229.353148,0.000298,7]
[344918288,1733878240538,-3229.353148,0.000298,7]
[344918289,1733878240547,-206.125017,0.000298,7]
[344918290,1733878240557,-206.125017,0.000298,7]
[344918291,1733878240567,-206.125017,0.000298,7]
[344918292,1733878240576,-206.125017,0.000298,7]
[344918293,1733878240586,-151.0,0.000298,7]
[344918294,1733878240595,-151.0,0.000298,7]
[344918295,1733878240604,-383.502367,0.000298,7]
[344918296,1733878240614,-383.502367,0.000298,7]
[344918297,1733878240623,-151.0,0.000298,7]
[344918298,1733878240632,-257.23072,0.000298,7]
[344918299,1733878240641,-152.386802,0.000298,7]
[344918300,1733878240650,-1000.0,0.000298,30]
[344918301,1733878240660,-372.467185,0.000298,7]
[344918302,1733878240669,-372.467185,0.000298,7]
[344918303,1733878240678,-372.467185,0.000298,7]
[344918304,1733878240688,-372.467185,0.000298,7]
[344918305,1733878240697,-1493.13187031,0.00029805,2]
[344918306,1733878240707,-1493.13187031,0.00029826,2]
[344918307,1733878240716,-383.502367,0.00029847,7]
[344918308,1733878240726,-383.502367,0.00029847,7]
[344918309,1733878240736,-1493.13187031,0.00029847,2]
[344918310,1733878240746,-277.0,0.0002985,28]
[344918311,1733878240755,-150.01,0.00029861,2]
[344918312,1733878240764,-500.0,0.00029861,2]
[344918313,1733878240775,-500.0,0.00029861,2]
[344918314,1733878240785,-500.0,0.00029861,2]
[344918315,1733878240795,-500.0,0.00029861,2]
[344918316,1733878240804,-412.05583467,0.00029861,2]
[344918317,1733878240813,-151.0,0.00029861,7]
[344918318,1733878240822,-151.0,0.00029861,7]
[344918319,1733878240831,-571.353096,0.00029861,7]
[344918320,1733878240841,-571.353096,0.00029861,7]
[344918321,1733878240851,-151.0,0.00029861,7]
[344918322,1733878240861,-151.0,0.00029861,7]
[344918323,1733878240871,-151.0,0.00029861,7]
[344918324,1733878240881,-3229.353148,0.00029861,7]
[344918325,1733878240890,-3229.353148,0.00029861,7]
[344918326,1733878240899,-151.0,0.00029861,7]
[344918327,1733878240909,-372.467185,0.00029861,7]
[344918328,1733878240919,-372.467185,0.00029861,7]
[344918329,1733878240928,-151.0,0.00029862,7]
[344918330,1733878240937,-151.0,0.00029863,7]
[344918331,1733878240947,-276.384644,0.00029863,7]
[344918332,1733878240957,-151.0,0.00029863,7]
[344918333,1733878240967,-151.0,0.00029863,7]
[344918334,1733878240976,-151.0,0.00029863,7]
[344918335,1733878240986,-151.0,0.00029863,7]
[344918336,1733878240996,-151.0,0.00029863,7]
[344918337,1733878241006,-151.0,0.00029863,7]
[344918338,1733878241015,-285.685111,0.00029863,7]
[344918339,1733878241025,-155.625522,0.00029863,7]
[344918340,1733878241035,-155.625522,0.00029863,7]
[344918341,1733878241044,-155.625522,0.00029863,7]
[344918342,1733878241054,-155.625522,0.00029863,7]
[344918343,1733878241064,-155.625522,0.00029863,7]
[344918344,1733878241074,-155.625522,0.00029863,7]
[344918345,1733878241083,-155.625522,0.00029863,7]
[344918346,1733878241092,-155.625522,0.00029863,7]
[344918347,1733878241101,-155.625522,0.00029863,7]
[344918348,1733878241111,-155.625522,0.00029863,7]
[344918349,1733878241120,-155.625522,0.00029863,7]
[344918350,1733878241130,-155.625522,0.00029863,7]
[344918351,1733878241139,-155.625522,0.00029863,7]
[344918352,1733878241149,-155.625522,0.00029863,7]
[344918353,1733878241158,-155.625522,0.00029863,7]
[344918354,1733878241167,-155.625522,0.00029863,7]
[344918355,1733878241177,-151.0,0.00029863,7]
[344918356,1733878241186,-151.0,0.00029863,7]
[344918357,1733878241196,-151.0,0.00029863,7]
[344918358,1733878241205,-151.0,0.00029863,7]
[344918359,1733878241215,-151.0,0.00029863,7]
[344918360,1733878241224,-151.0,0.00029863,7]
[344918361,1733878241233,-151.0,0.00029863,7]
[344918362,1733878241243,-151.0,0.00029863,7]
[344918363,1733878241252,-151.0,0.00029863,7]
[344918364,1733878241262,-151.0,0.00029863,7]
[344918365,1733878241272,-242.606882,0.00029863,7]
[344918366,1733878241281,-151.0,0.00029863,7]
[344918367,1733878241292,-151.0,0.00029863,7]
[344918368,1733878241302,-250.14618,0.00029863,7]
[344918369,1733878241311,-151.0,0.00029863,7]
[344918370,1733878241321,-151.0,0.00029863,7]
[344918371,1733878241330,-151.0,0.00029863,7]
[344918372,1733878241340,-151.0,0.00029863,7]
[344918373,1733878241349,-151.0,0.00029863,7]
[344918374,1733878241359,-151.0,0.00029863,7]
[344918375,1733878241369,-151.0,0.00029863,7]
[344918376,1733878241379,-151.0,0.00029863,7]
[344918377,1733878241388,-151.0,0.00029863,7]
[344918378,1733878241398,-151.0,0.00029863,7]
[344918379,1733878241407,-151.0,0.00029863,7]
[344918380,1733878241417,-195.420043,0.00029863,7]
[344918381,1733878241426,-620.43305,0.00029863,7]
[344918382,1733878241436,-620.43305,0.00029863,7]
[344918383,1733878241446,-620.43305612,0.00029863,7]
[344918384,1733878241456,-151.0,0.00029863,7]
[344918385,1733878241466,-151.0,0.00029863,7]
[344918386,1733878241476,-151.0,0.00029863,7]
[344918387,1733878241487,-151.0,0.00029863,7]
[344918388,1733878241498,-151.0,0.00029863,7]
[344918389,1733878241507,-151.0,0.00029863,7]
[344918390,1733878241518,-253.693183,0.00029863,7]
[344918391,1733878241528,-151.0,0.00029863,7]
[344918392,1733878241540,-151.0,0.00029863,7]
[344918393,1733878241550,-176.757686,0.00029863,7]
[344918394,1733878241560,-151.0,0.00029863,7]
[344918395,1733878241570,-176.757686,0.00029863,7]
[344918396,1733878241579,-151.0,0.00029863,7]
[344918397,1733878241589,-151.0,0.00029863,7]
[344918398,1733878241599,-151.0,0.00029863,7]
[344918399,1733878241608,-151.0,0.00029863,7]
[344918400,1733878241618,-251.570929,0.00029863,7]
[344918401,1733878241628,-251.570929,0.00029863,7]
[344918402,1733878241638,-251.570929,0.00029863,7]
[344918403,1733878241648,-251.570929,0.00029863,7]
[344918404,1733878241658,-251.570929,0.00029863,7]
[344918405,1733878241667,-251.570929,0.00029863,7]
[344918406,1733878241677,-251.570929,0.00029863,7]
[344918407,1733878241687,-251.570929,0.00029863,7]
[344918408,1733878241696,-251.570929,0.00029863,7]
[344918409,1733878241706,-251.570929,0.00029863,7]
[344918410,1733878241715,-251.570929,0.00029863,7]
[344918411,1733878241725,-251.570929,0.00029863,7]
[344918412,1733878241734,-251.570929,0.00029863,7]
[344918413,1733878241744,-251.570929,0.00029863,7]
[344918414,1733878241753,-251.570929,0.00029863,7]
[344918415,1733878241763,-251.570929,0.00029863,7]
[344918416,1733878241772,-251.570929,0.00029863,7]
[344918417,1733878241781,-251.570929,0.00029863,7]
[344918418,1733878241792,-251.570929,0.00029863,7]
[344918419,1733878241802,-251.570925,0.00029863,7]
[344918420,1733878241811,-151.0,0.00029863,7]
[344918421,1733878241820,-152.318665,0.00029863,7]
[344918422,1733878241830,-419.35148,0.00029863,7]
[344918423,1733878241839,-419.35148,0.00029863,7]
[344918424,1733878241849,-419.35148,0.00029863,7]
[344918425,1733878241859,-419.35148,0.00029863,7]
[344918426,1733878241869,-419.351471,0.00029863,7]
[344918427,1733878241878,-258.579014,0.00029863,7]
[344918428,1733878241887,-258.579014,0.00029863,7]
[344918429,1733878241897,-258.579014,0.00029863,7]
[344918430,1733878241907,-258.579014,0.00029863,7]
[344918431,1733878241916,-258.579014,0.00029863,7]
[344918432,1733878241925,-258.579014,0.00029863,7]
[344918433,1733878241935,-258.579014,0.00029863,7]
[344918434,1733878241944,-258.579014,0.00029863,7]
[344918435,1733878241954,-258.579014,0.00029863,7]
[344918436,1733878241963,-258.579014,0.00029863,7]
[344918437,1733878241973,-258.579014,0.00029863,7]
[344918438,1733878241983,-258.579014,0.00029863,7]
[344918439,1733878241992,-258.579014,0.00029863,7]
[344918440,1733878242002,-258.579014,0.00029863,7]
[344918441,1733878242011,-258.579014,0.00029863,7]
[344918442,1733878242020,-258.579014,0.00029863,7]
[344918443,1733878242030,-151.0,0.00029863,7]
[344918444,1733878242042,-151.0,0.00029863,7]
[344918445,1733878242052,-151.0,0.00029863,7]
[344918446,1733878242061,-151.0,0.00029863,7]
[344918447,1733878242071,-151.0,0.00029863,7]
[344918448,1733878242080,-151.0,0.00029863,7]
[344918449,1733878242090,-151.0,0.00029863,7]
[344918450,1733878242099,-151.0,0.00029863,7]
[344918451,1733878242108,-151.0,0.00029863,7]
[344918452,1733878242117,-151.0,0.00029863,7]
[344918453,1733878242126,-151.0,0.00029863,7]
[344918454,1733878242135,-151.0,0.00029863,7]
[344918455,1733878242144,-151.0,0.00029863,7]
[344918456,1733878242153,-229.002219,0.00029863,7]
[344918457,1733878242162,-151.0,0.00029863,7]
[344918458,1733878242172,-151.0,0.00029863,7]
[344918459,1733878242181,-151.0,0.00029863,7]
[344918460,1733878242190,-151.0,0.00029863,7]
[344918461,1733878242200,-151.0,0.00029863,7]
[344918462,1733878242209,-151.0,0.00029863,7]
[344918463,1733878242219,-151.0,0.00029863,7]
[344918464,1733878242228,-151.0,0.00029863,7]
[344918465,1733878242238,-151.0,0.00029863,7]
[344918466,1733878242247,-151.0,0.00029863,7]
[344918467,1733878242256,-151.0,0.00029863,7]
[344918468,1733878242266,-151.0,0.00029863,7]
[344918469,1733878242275,-151.0,0.00029863,7]
[344918470,1733878242285,-151.0,0.00029863,7]
[344918471,1733878242294,-151.0,0.00029863,7]
[344918472,1733878242308,-151.73154,0.00029863,7]
[344918473,1733878242318,-210.110147,0.00029863,7]
[344918474,1733878242327,-249.708559,0.00029863,7]
[344918475,1733878242337,-249.708559,0.00029863,7]
[344918476,1733878242347,-249.708559,0.00029863,7]
[344918477,1733878242356,-249.708559,0.00029863,7]
[344918478,1733878242366,-249.708559,0.00029863,7]
[344918479,1733878242376,-249.708559,0.00029863,7]
[344918480,1733878242385,-249.708559,0.00029863,7]
[344918481,1733878242395,-249.708559,0.00029863,7]
[344918482,1733878242404,-249.708559,0.00029863,7]
[344918483,1733878242413,-249.708559,0.00029863,7]
[344918484,1733878242423,-249.708559,0.00029863,7]
[344918485,1733878242433,-249.708559,0.00029863,7]
[344918486,1733878242443,-249.708559,0.00029863,7]
[344918487,1733878242453,-249.708559,0.00029863,7]
[344918488,1733878242463,-249.708559,0.00029863,7]
[344918489,1733878242472,-249.708559,0.00029863,7]
[344918490,1733878242483,-249.708559,0.00029863,7]
[344918491,1733878242495,-249.708559,0.00029863,7]
[344918492,1733878242505,-249.708559,0.00029863,7]
[344918493,1733878242514,-249.708567,0.00029863,7]
[344918494,1733878242524,-151.0,0.00029863,7]
[344918495,1733878242536,-151.0,0.00029863,7]
[344918496,1733878242545,-151.0,0.00029863,7]
[344918497,1733878242555,-151.0,0.00029863,7]
[344918498,1733878242568,-151.0,0.00029863,7]
[344918499,1733878242578,-151.0,0.00029863,7]
[344918500,1733878242588,-151.0,0.00029863,7]
[344918501,1733878242598,-151.0,0.00029863,7]
[344918502,1733878242607,-151.0,0.00029863,7]
[344918503,1733878242718,-151.0,0.00029863,7]
[344918504,1733878242728,-151.0,0.00029863,7]
[344918505,1733878242738,-151.0,0.00029863,7]
[344918506,1733878242747,-151.0,0.00029863,7]
[344918507,1733878242756,-151.0,0.00029863,7]
[344918508,1733878242766,-151.0,0.00029863,7]
[344918509,1733878242775,-151.0,0.00029863,7]
[344918510,1733878242785,-151.0,0.00029863,7]
[344918511,1733878242797,-151.0,0.00029863,7]
[344918512,1733878242811,-151.0,0.00029863,7]
[344918513,1733878242820,-152.355829,0.00029863,7]
[344918514,1733878242829,-151.0,0.00029863,7]
[344918515,1733878242838,-151.0,0.00029863,7]
[344918516,1733878242848,-151.0,0.00029863,7]
[344918517,1733878242858,-151.0,0.00029863,7]
[344918518,1733878242868,-151.0,0.00029863,7]
[344918519,1733878242877,-151.0,0.00029863,7]
[344918520,1733878242886,-151.0,0.00029863,7]
[344918521,1733878242896,-151.0,0.00029863,7]
[344918522,1733878242905,-151.0,0.00029863,7]
[344918523,1733878242915,-154.162768,0.00029863,7]
[344918524,1733878242924,-500.0,0.00029863,7]
[344918525,1733878242934,-158.766345,0.00029863,7]
[344918526,1733878242944,-158.766345,0.00029863,7]
[344918527,1733878242954,-158.766345,0.00029863,7]
[344918529,1733878242964,-158.766345,0.00029863,7]
[344918530,1733878242974,-158.766345,0.00029863,7]
[344918531,1733878242984,-158.766345,0.00029863,7]
[344918532,1733878242994,-158.766345,0.00029863,7]
[344918533,1733878243004,-158.766345,0.00029863,7]
[344918534,1733878243013,-158.766345,0.00029863,7]
[344918536,1733878243023,-158.766345,0.00029863,7]
[344918537,1733878243033,-158.766345,0.00029863,7]
[344918538,1733878243046,-158.766345,0.00029863,7]
[344918539,1733878243056,-158.766345,0.00029863,7]
[344918540,1733878243065,-158.766345,0.00029863,7]
[344918541,1733878243075,-158.766345,0.00029863,7]
[344918543,1733878243085,-158.766337,0.00029863,7]
[344918545,1733878243095,-500.0,0.00029863,7]
[344918547,1733878243104,-500.0,0.00029863,7]
[344918548,1733878243114,-500.0,0.00029863,7]
[344918550,1733878243125,-509.01262864,0.00029863,7]
[344918552,1733878243134,-500.0,0.00029863,7]
[344918553,1733878243147,-500.0,0.00029863,7]
[344918554,1733878243157,-377.92475436,0.00029863,7]
[344918555,1733878243167,-480.22689264,0.00029863,7]
[344918556,1733878243177,-500.0,0.00029863,7]
[344918557,1733878243186,-500.0,0.00029863,7]
[344918559,1733878243196,-432.96356215,0.00029863,7]
[344918560,1733878243205,-500.0,0.00029863,7]
[344918561,1733878243215,-500.0,0.00029863,7]
[344918562,1733878243224,-500.0,0.00029863,7]
[344918563,1733878243234,-500.0,0.00029863,7]
[344918564,1733878243243,-500.0,0.00029863,7]
[344918566,1733878243253,-500.0,0.00029863,7]
[344918568,1733878243263,-500.0,0.00029863,7]
[344918569,1733878243272,-500.0,0.00029863,7]
[344918571,1733878243281,-500.0,0.00029863,7]
[344918572,1733878243294,-500.0,0.00029863,7]
[344918573,1733878243303,-500.0,0.00029863,7]
[344918574,1733878243313,-500.0,0.00029863,7]
[344918579,1733878243529,-500.0,0.00029863,7]
[344918581,1733878243542,-500.0,0.00029863,7]
[344918582,1733878243553,-500.0,0.00029863,7]
[344918583,1733878243562,-500.0,0.00029863,7]
[344918584,1733878243572,-500.0,0.00029863,7]
[344918585,1733878243582,-500.0,0.00029863,7]
[344918586,1733878243591,-500.0,0.00029863,7]
[344918587,1733878243600,-500.0,0.00029863,7]
[344918588,1733878243610,-500.0,0.00029863,7]
[344918589,1733878243619,-500.0,0.00029863,7]
[344918590,1733878243628,-432.25405079,0.00029863,7]
[344918591,1733878243637,-500.0,0.00029863,7]
[344918592,1733878243645,-252.5774808,0.00029863,7]
[344918593,1733878243655,-500.0,0.00029863,7]
[344918594,1733878243663,-243.49264519,0.00029863,7]
[344918595,1733878243670,-500.0,0.00029863,7]
[344918596,1733878243678,-500.0,0.00029863,7]
[344918597,1733878243686,-500.0,0.00029863,7]
[344918598,1733878243694,-500.0,0.00029863,7]
[344918599,1733878243702,-500.0,0.00029863,7]
[344918600,1733878243708,-500.0,0.00029863,7]
[344918601,1733878243715,-500.0,0.00029863,7]
[344918602,1733878243722,-500.0,0.00029863,7]
[344918603,1733878243730,-500.0,0.00029863,7]
[344918604,1733878243736,-255.33134781,0.00029863,7]
[344918605,1733878243744,-500.0,0.00029863,7]
[344918607,1733878243751,-500.0,0.00029863,7]
[344918608,1733878243757,-500.0,0.00029863,7]
[344918609,1733878243764,-500.0,0.00029863,7]
[344918610,1733878243771,-519.32268543,0.00029863,7]
[344918611,1733878243779,-502.15995962,0.00029863,7]
[344918612,1733878243787,-414.58177932,0.00029863,7]
[344918613,1733878243795,-500.0,0.00029863,7]
[344918614,1733878243801,-500.0,0.00029863,7]
[344918615,1733878243809,-319.02216038,0.00029863,7]
[344918616,1733878243817,-321.29999081,0.00029863,7]
[344918617,1733878243827,-170.78272999,0.00029863,7]
[344918618,1733878243836,-500.0,0.00029863,7]
[344918619,1733878243846,-500.0,0.00029863,7]
[344918620,1733878243855,-500.0,0.00029863,7]
[344918621,1733878243866,-500.0,0.00029863,7]
[344918622,1733878243875,-249.0417192,0.00029863,7]
[344918623,1733878243884,-500.0,0.00029863,7]
[344918624,1733878243894,-500.0,0.00029863,7]
[344918625,1733878243903,-441.11870603,0.00029863,7]